bitfinex/quotes_ETHUSD_20220215
["timestamp","ask_amount","ask_price","bid_price","bid_amount"]
[1644891302466,0.008,3018.2,3017.9,0.01285568]
[1644891302665,0.01400017,3018.2,3017.9,0.01285568]
[1644891303520,0.008,3018.2,3017.9,0.01285568]
[1644891303920,0.00980005,3018.2,3017.9,0.01285568]
[1644891304719,0.008,3018.2,3017.9,0.01285568]
[1644891305119,0.01400017,3018.2,3017.9,0.01285568]
[1644891305921,0.008,3018.2,3017.9,0.01285568]
[1644891306324,0.01400017,3018.2,3017.9,0.01285568]
[1644891307177,0.008,3018.2,3017.9,0.01285568]
[1644891307377,0.008,3018.2,3017.4,0.82859]
[1644891307378,0.8285984,3018.1,3017.4,1.67568293]
[1644891307576,0.8285984,3018.1,3017.9,0.04103824]
[1644891308379,0.8285984,3018.1,3017.9,0.05768702]
[1644891309076,0.8285984,3018.1,3018.0,0.13859748]
[1644891309277,0.8285984,3018.1,3018.0,0.28489201]
[1644891309677,0.008,3018.2,3018.0,0.28489201]
[1644891309877,0.01400017,3018.2,3018.0,0.28489201]
[1644891310532,0.01400017,3018.2,3018.0,0.34257903]
[1644891310733,0.008,3018.2,3018.0,0.34257903]
[1644891311335,0.00641649,3018.2,3018.0,0.34257903]
[1644891312135,0.83498559,3018.2,3018.0,0.34257903]
[1644891312439,1.4054004,3018.1,3018.0,0.34257903]
[1644891314874,2.4857073,3019.1,3018.2,3.8]
[1644891314875,2.12433,3018.8,3018.2,3.8]
[1644891315082,4.48310897,3019.1,3018.5,3.2]
[1644891315083,0.8259086,3019.1,3018.5,3.2]
[1644891315281,3.59226762,3019.4,3018.6,6.121e-05]
[1644891315282,0.76317172,3019.2,3018.6,6.121e-05]
[1644891315473,0.76317172,3019.2,3018.7,0.13859748]
[1644891315681,0.82838,3019.2,3018.8,0.00769705]
[1644891315977,0.63043072,3019.1,3018.7,0.12471574]
[1644891316177,0.63036972,3019.6,3018.8,4.7]
[1644891316375,0.05,3020.0,3018.9,4.1416]
[1644891316376,0.68036972,3020.0,3018.9,4.1416]
[1644891316575,0.63036972,3019.9,3018.9,4.02615406]
[1644891316775,0.68036972,3020.0,3019.3,0.82797]
[1644891316973,0.63036972,3019.9,3019.4,0.476]
[1644891317174,0.00180005,3019.6,3019.4,2.13191]
[1644891317476,0.00180005,3019.6,3019.4,0.50813256]
[1644891317673,0.00180005,3019.6,3019.4,0.03213256]
[1644891318123,0.63036972,3019.6,3019.4,0.03213256]
[1644891318724,0.8259086,3019.5,3019.4,0.03213256]
[1644891318921,1.6542686,3019.5,3019.4,0.03213256]
[1644891319320,0.82836,3019.5,3019.4,0.03213256]
[1644891319922,1.62987618,3019.5,3019.4,0.03213256]
[1644891320321,1.0,3019.5,3019.4,0.03213256]
[1644891320527,1.62987541,3019.5,3019.4,0.03213256]
[1644891320822,1.62987507,3019.5,3019.4,0.29544578]
[1644891321422,1.0,3019.5,3019.4,0.29544578]
[1644891322274,1.62980062,3019.5,3019.4,0.29544578]
[1644891322869,1.0,3019.5,3019.4,0.29544578]
[1644891323678,0.63578579,3019.6,3019.4,0.29544578]
[1644891323972,0.004,3019.7,3019.4,1.36744578]
[1644891324173,0.004,3019.7,3019.5,6.121e-05]
[1644891324372,0.004,3019.7,3019.5,0.47606121]
[1644891324574,0.004,3019.7,3019.5,0.50819377]
[1644891324773,0.05,3020.0,3019.6,0.82799]
[1644891324972,0.05,3020.0,3019.6,6.121e-05]
[1644891325173,0.05,3020.0,3019.5,0.50819377]
[1644891325627,0.05180165,3020.0,3019.5,0.03219377]
[1644891325827,0.87994145,3020.0,3019.5,0.03213256]
[1644891326032,0.05180165,3020.0,3019.8,0.13859748]
[1644891326337,0.05180165,3020.0,3019.8,0.26331322]
[1644891326628,0.05,3020.0,3019.8,0.29544578]
[1644891327629,0.05,3020.0,3019.8,0.24550699]
[1644891327831,0.05,3020.0,3019.8,0.24544578]
[1644891329269,0.05,3020.0,3019.8,1.07338578]
[1644891329469,0.05,3020.0,3019.9,6.121e-05]
[1644891329871,0.05,3020.0,3019.9,0.03219377]
[1644891330073,0.05,3020.0,3019.9,0.03213256]
[1644891330872,0.054,3020.0,3019.9,0.03213256]
[1644891331474,0.054,3020.0,3019.9,0.24550699]
[1644891332073,0.054,3020.0,3019.9,0.24544578]
[1644891335123,1.45875814,3020.0,3019.9,0.24544578]
[1644891335922,1.45875814,3020.0,3019.7,0.45588337]
[1644891336122,1.40475814,3019.9,3019.7,0.45588337]
[1644891336771,1.40475814,3019.9,3019.7,1.28379497]
[1644891336969,1.40475814,3019.9,3019.8,0.82795]
[1644891337269,1.40475814,3019.9,3019.8,1.65589]
[1644891337470,1.40475814,3019.9,3019.8,0.82795]
[1644891339272,0.05998517,3020.0,3019.8,0.82795]
[1644891339770,0.132666,3020.3,3019.8,0.82795]
[1644891339771,0.132666,3020.3,3019.9,0.82777]
[1644891339973,0.00598517,3020.1,3019.9,0.82777]
[1644891340824,0.62980062,3020.9,3020.4,1.03701536]
[1644891341225,2.86237155,3020.9,3020.5,0.001]
[1644891341424,1.40464093,3020.8,3020.0,0.82889]
[1644891342125,1.40464093,3020.7,3020.0,0.82889]
[1644891342324,0.00598517,3020.6,3020.0,1.78597592]
[1644891342524,0.00598517,3020.6,3019.5,20.496]
[1644891342525,1.40464093,3020.5,3020.1,0.001]
[1644891342725,0.3,3020.5,3019.3,3.2646]
[1644891342926,2.33444155,3020.5,3019.4,0.001]
[1644891343126,1.40464093,3020.4,3019.4,0.001]
[1644891343526,0.00598517,3020.1,3019.6,1.04912923]
[1644891343726,1.40464093,3020.0,3019.7,0.001]
[1644891344582,1.40464093,3019.9,3019.7,0.001]
[1644891344780,1.40464093,3019.8,3019.7,1.65701]
[1644891344981,0.00598517,3020.0,3019.7,1.65701]
[1644891344982,1.40464093,3019.9,3019.7,1.65701]
[1644891345176,1.40464093,3019.9,3019.8,0.001]
[1644891345377,1.40464093,3019.9,3019.7,0.82901]
[1644891345581,1.0,3020.4,3019.7,0.82901]
[1644891345782,0.79530062,3020.8,3019.8,0.82799]
[1644891345783,1.40469249,3020.3,3019.8,0.82799]
[1644891345981,0.00598517,3020.0,3019.8,1.65692]
[1644891346180,0.00598517,3020.0,3019.9,0.001]
[1644891346378,0.00598517,3020.0,3019.8,0.82799]
[1644891346379,1.41073509,3020.0,3019.8,0.82799]
[1644891346579,0.00598517,3020.0,3019.8,0.82799]
[1644891346781,0.62980062,3020.7,3019.8,0.82799]
[1644891346980,1.75778062,3020.7,3019.8,0.82799]
[1644891347184,0.00598517,3020.1,3019.8,0.82899]
[1644891347382,1.40472095,3020.0,3019.8,0.82899]
[1644891347581,1.40472095,3020.0,3019.8,1.65693]
[1644891347787,1.40472095,3020.0,3019.9,0.001]
[1644891348218,0.00598517,3020.1,3019.8,0.82899]
[1644891348417,1.40472095,3020.0,3019.8,0.82799]
[1644891348919,1.40472095,3020.0,3019.8,1.65597]
[1644891349118,1.40472095,3020.0,3019.9,0.001]
[1644891349520,0.00598517,3020.1,3019.9,0.001]
[1644891349722,1.40472095,3020.0,3019.9,0.001]
[1644891349923,1.40472095,3020.0,3019.9,0.82794]
[1644891350127,0.00598517,3020.1,3019.9,3.501]
[1644891350322,0.00598517,3020.1,3020.0,1.477]
[1644891350524,0.00320785,3021.3,3020.0,1.477]
[1644891350525,0.62980062,3020.9,3020.1,0.0059]
[1644891350719,0.62980062,3021.0,3020.2,0.476]
[1644891350919,0.62980062,3021.2,3020.4,0.82764]
[1644891351120,0.62980062,3021.2,3020.8,0.92096593]
[1644891351321,0.62980062,3021.2,3020.9,1.65528]
[1644891351520,0.62980062,3021.2,3021.0,0.001]
[1644891351788,0.62980062,3021.2,3020.9,0.82864]
[1644891351984,0.63160279,3021.2,3020.9,0.82864]
[1644891352184,0.62980062,3021.1,3020.9,0.001]
[1644891352584,0.63160279,3021.2,3020.7,0.001]
[1644891352785,0.62980062,3021.2,3020.6,1.65643]
[1644891352985,0.62980062,3021.2,3020.7,0.001]
[1644891353184,0.62980062,3021.2,3020.4,0.001]
[1644891353185,0.62980062,3021.1,3020.4,0.001]
[1644891353389,0.8278388,3021.0,3020.3,0.001]
[1644891353988,0.8278388,3021.0,3020.4,1.65555]
[1644891354189,0.8278388,3021.0,3020.5,0.001]
[1644891354388,0.00598517,3020.8,3020.5,0.001]
[1644891354589,0.00598517,3020.8,3020.5,0.82882]
[1644891355391,1.45760862,3021.1,3020.5,0.82882]
[1644891355625,0.00598517,3020.8,3020.5,0.82882]
[1644891356028,0.00598517,3020.8,3020.4,0.1584477]
[1644891356426,1.45762862,3021.0,3020.4,0.1584477]
[1644891356628,0.00598517,3020.8,3020.4,0.1584477]
[1644891356826,0.00598517,3020.8,3020.5,0.82782]
[1644891357725,0.827828,3021.0,3020.5,0.82782]
[1644891357926,0.00598517,3020.8,3020.5,0.82782]
[1644891358126,0.00598517,3020.8,3020.5,2.48344]
[1644891358325,0.00598517,3020.8,3020.6,0.8278]
[1644891358927,0.62980062,3021.1,3020.6,0.8278]
[1644891359126,0.00598517,3020.9,3020.6,2.48337]
[1644891359371,0.00598517,3020.9,3020.7,1.70496389]
[1644891359572,0.00598517,3020.9,3020.7,0.82776]
[1644891359969,0.62980062,3021.0,3020.7,0.82776]
[1644891360174,0.62980062,3021.0,3020.7,2.48334]
[1644891360372,0.63578579,3021.0,3020.8,1.6555902]
[1644891360572,0.00598517,3021.0,3020.8,1.6555902]
[1644891361173,0.00598517,3021.0,3020.9,0.001]
[1644891361373,0.62980062,3021.2,3021.0,0.82765]
[1644891361577,0.00598517,3021.1,3021.0,0.82865]
[1644891361772,0.00598517,3021.1,3021.0,1.73327034]
[1644891362373,0.00598517,3021.1,3021.0,4.98464229]
[1644891362574,0.00320785,3021.3,3021.0,3.38869034]
[1644891362776,0.00320785,3021.3,3021.1,1.6564503]
[1644891362777,0.00598517,3021.2,3021.1,1.6564503]
[1644891363020,0.00598517,3021.2,3021.1,0.82873]
[1644891363620,0.00320785,3021.3,3021.1,0.001]
[1644891363919,0.00320785,3021.3,3020.9,0.001]
[1644891364121,0.63899364,3021.3,3020.7,0.001]
[1644891364320,0.62980062,3021.1,3020.2,3.501]
[1644891364519,0.82799,3021.0,3020.3,0.001]
[1644891364721,0.82799,3020.9,3020.2,0.001]
[1644891364924,1.82799,3020.9,3020.2,0.001]
[1644891365120,0.00598517,3020.8,3020.2,0.001]
[1644891365919,0.00598517,3020.8,3020.1,0.001]
[1644891366120,1.45783062,3021.0,3020.1,0.001]
[1644891366420,0.00598517,3020.7,3020.1,0.001]
[1644891366620,0.8280752,3020.6,3020.1,0.001]
[1644891367067,0.8280752,3020.6,3020.0,0.001]
[1644891367469,2.4843152,3020.6,3020.0,0.001]
[1644891367668,0.83410157,3020.5,3020.0,0.001]
[1644891367870,0.82815,3020.4,3020.0,0.001]
[1644891368069,1.6562827,3020.4,3020.0,0.001]
[1644891368470,1.6562827,3020.4,3019.8,0.96108232]
[1644891368668,0.00598517,3020.4,3019.8,0.96108232]
[1644891368869,0.00598517,3020.4,3019.9,0.82807]
[1644891369068,0.00598517,3020.4,3019.9,0.82907]
[1644891369769,0.00598517,3020.4,3019.9,1.65713]
[1644891369969,0.00598517,3020.4,3020.0,0.001]
[1644891370169,1.40453669,3020.3,3020.0,0.82906]
[1644891370372,1.41052186,3020.3,3020.0,0.82906]
[1644891370626,1.40453669,3020.2,3020.0,0.82906]
[1644891371223,1.40453669,3020.1,3020.0,0.82906]
[1644891371423,1.40453669,3020.2,3020.0,0.82906]
[1644891371621,1.40453669,3020.2,3020.0,0.001]
[1644891371821,1.40453669,3020.2,3019.9,0.8291]
[1644891372222,1.40453669,3020.1,3019.9,0.8291]
[1644891372422,0.00598517,3020.3,3019.9,0.8291]
[1644891372723,1.40456107,3020.2,3019.9,0.8291]
[1644891373422,1.40456107,3020.1,3019.9,0.8291]
[1644891373631,0.00598517,3020.2,3019.9,1.65718]
[1644891373826,1.40456801,3020.1,3020.0,0.82906]
[1644891375982,0.00598517,3020.2,3020.0,0.001]
[1644891376182,1.40456801,3020.1,3019.9,0.82908]
[1644891376384,1.40456801,3020.1,3019.9,0.001]
[1644891376583,1.40456801,3020.1,3019.8,0.96108232]
[1644891377185,1.40456801,3020.0,3019.8,0.96108232]
[1644891377384,1.40456801,3020.0,3019.8,2.61724232]
[1644891377591,1.40456801,3020.0,3019.9,0.001]
[1644891378227,1.40456801,3020.3,3019.9,0.001]
[1644891378423,0.00598517,3020.1,3019.9,0.82906]
[1644891378618,1.40456801,3020.0,3019.9,1.65712]
[1644891378818,1.40456801,3020.0,3019.9,0.001]
[1644891379423,1.40456801,3020.5,3019.9,0.001]
[1644891379628,0.00598517,3020.1,3019.9,0.82904]
[1644891379822,1.40456801,3020.0,3019.9,1.65711]
[1644891380024,1.40456801,3020.0,3019.9,0.82907]
[1644891380723,1.40456801,3020.0,3019.9,1.6571]
[1644891381124,1.40456801,3020.0,3019.9,0.82907]
[1644891382180,1.40456801,3020.0,3019.9,4.98002419]
[1644891382381,1.40456801,3020.0,3019.9,0.82907]
[1644891383283,1.40456801,3020.0,3019.9,1.65705]
[1644891383480,1.40456801,3020.0,3019.9,4.09494481]
[1644891383681,1.40456801,3020.0,3019.9,4.11520458]
[1644891383981,1.40456801,3020.0,3019.9,0.82907]
[1644891384182,1.40456801,3020.0,3019.9,4.15063547]
[1644891384382,1.40456801,3020.0,3019.9,4.22588732]
[1644891384582,0.00598517,3020.1,3019.9,4.22588732]
[1644891384781,0.00598517,3020.1,3020.0,3.8528421]
[1644891384981,0.00598517,3020.1,3020.0,4.6806321]
[1644891385382,0.62980062,3021.0,3020.9,1.17749725]
[1644891385622,0.62980062,3021.0,3020.9,0.92902695]
[1644891386023,1.40440494,3021.0,3020.9,1.75682695]
[1644891386222,0.62980062,3021.1,3020.9,1.75682695]
[1644891386427,0.62980062,3021.2,3020.9,1.75682695]
[1644891386825,0.00598517,3021.1,3020.9,1.75682695]
[1644891387024,1.40440494,3021.0,3020.9,1.75682695]
[1644891387624,1.40440494,3021.0,3020.9,2.58461695]
[1644891387824,1.40440494,3021.0,3020.9,1.75681695]
[1644891388027,1.40440494,3021.0,3020.9,2.53281695]
[1644891388028,1.11907608,3021.0,3020.9,2.53281695]
[1644891388227,0.00598517,3021.1,3020.9,2.53281695]
[1644891388434,0.00598517,3021.1,3020.9,6.03281695]
[1644891388624,0.00598517,3021.1,3020.9,2.53281695]
[1644891389027,0.62980062,3022.0,3021.2,0.82748]
[1644891389270,0.62980062,3022.0,3021.5,1.01979641]
[1644891389872,0.62980062,3021.9,3021.5,1.01979641]
[1644891390071,0.62980062,3021.9,3021.5,4.33701161]
[1644891390273,0.62980062,3021.9,3021.6,0.8274614]
[1644891390674,0.62980062,3021.9,3021.7,0.82746]
[1644891390876,0.9584996,3022.2,3021.7,0.82746]
[1644891390877,0.62980062,3022.0,3021.7,0.82846]
[1644891391275,2.43438003,3022.6,3022.0,1.10786199]
[1644891391276,0.62980062,3022.2,3022.0,1.10786199]
[1644891391474,0.62980062,3022.2,3022.1,0.001]
[1644891391874,0.62980062,3022.2,3022.1,0.82845]
[1644891393136,0.00597408,3022.3,3022.1,0.82845]
[1644891393340,1.25560344,3023.5,3022.3,0.82718]
[1644891393537,0.8276,3023.7,3023.1,5.947]
[1644891393743,0.8276,3023.7,3023.2,0.477]
[1644891393744,0.00253702,3023.4,3023.2,0.477]
[1644891393933,1.6645765,3023.7,3023.2,0.477]
[1644891393934,0.00253702,3023.6,3023.3,0.476]
[1644891394135,0.00253702,3023.6,3023.4,0.98995044]
[1644891394334,0.83013702,3023.7,3023.5,0.476]
[1644891394538,0.83013702,3023.7,3023.2,0.001]
[1644891394737,0.8369765,3023.6,3022.7,0.1663]
[1644891394935,0.00253702,3023.5,3022.7,0.1663]
[1644891395135,0.00253702,3023.6,3022.7,0.1663]
[1644891395335,0.00253702,3023.6,3023.0,0.9583927]
[1644891396239,0.00253702,3023.6,3022.8,0.001]
[1644891396437,0.00253702,3023.6,3022.7,0.1663]
[1644891396438,0.84292567,3023.5,3022.7,0.1663]
[1644891396635,0.84292567,3023.5,3022.7,0.1653]
[1644891396636,0.00253702,3023.4,3022.7,0.1653]
[1644891397277,1.12993046,3023.1,3022.7,0.1653]
[1644891397471,0.00253702,3023.0,3022.5,0.001]
[1644891397872,0.00594917,3023.2,3022.5,0.001]
[1644891398171,0.00594917,3023.2,3021.4,4.54993]
[1644891398372,0.00594917,3023.2,3021.3,0.1654]
[1644891398373,0.8369765,3022.9,3021.3,0.1654]
[1644891398571,0.8369765,3022.9,3021.2,0.4865361]
[1644891398572,0.30253702,3022.8,3021.2,0.4865361]
[1644891398774,0.00594917,3022.5,3021.2,0.4865361]
[1644891399273,1.13073706,3022.0,3021.3,1.14030181]
[1644891399673,1.00253702,3022.6,3021.3,1.14030181]
[1644891399872,0.00253702,3022.6,3021.3,1.14030181]
[1644891400073,0.00594789,3022.5,3021.3,1.14030181]
[1644891400926,0.30253702,3022.6,3021.3,1.14030181]
[1644891401126,1.12107432,3022.2,3021.3,1.14030181]
[1644891401329,1.42361134,3022.2,3021.3,1.14030181]
[1644891401531,1.42361134,3022.2,3020.9,0.4936382]
[1644891401727,1.42361134,3022.2,3020.7,3.2065]
[1644891401728,0.476,3022.1,3020.7,3.2065]
[1644891402127,0.476,3022.1,3020.6,2.93]
[1644891402328,1.476,3022.1,3020.6,2.93]
[1644891402627,0.476,3022.1,3021.2,0.86571041]
[1644891402827,0.1653,3022.0,3021.2,0.86571041]
[1644891404130,1.10176977,3022.1,3021.2,0.86571041]
[1644891404383,0.476,3022.1,3021.2,0.86571041]
[1644891404585,1.10176977,3022.1,3020.9,0.001]
[1644891404790,1.10176977,3022.1,3020.8,0.82867]
[1644891404981,0.00253702,3022.0,3020.8,0.82867]
[1644891405783,1.0884614,3021.7,3021.0,0.9207116]
[1644891406185,1.49676631,3020.9,3020.7,1.2143]
[1644891406586,1.49676631,3020.9,3020.6,0.82768]
[1644891407382,1.49676631,3020.9,3020.7,0.99490666]
[1644891407784,1.49676631,3020.9,3020.8,0.82767]
[1644891411225,1.49676631,3020.9,3020.8,0.82867]
[1644891413072,1.49676631,3020.9,3020.8,0.001]
[1644891413274,2.90106149,3020.9,3020.7,0.99490666]
[1644891413473,2.90106149,3020.9,3020.3,0.001]
[1644891413474,1.49676631,3020.9,3020.3,0.001]
[1644891413674,1.49676631,3020.9,3020.2,0.04016692]
[1644891413873,1.49676631,3020.9,3020.2,0.86796692]
[1644891414381,1.49676631,3020.9,3020.2,0.8288]
[1644891414578,1.49676631,3020.9,3020.7,1.04335614]
[1644891414776,1.49676631,3020.9,3020.8,0.001]
[1644891416528,2.9010798,3020.9,3020.8,0.001]
[1644891416728,2.90106473,3020.9,3020.8,0.001]
[1644891419380,1.49676631,3020.9,3020.8,0.001]
[1644891419781,1.49676631,3020.9,3020.8,0.301]
[1644891420585,1.49676631,3020.9,3020.8,1.9561]
[1644891420778,1.49676631,3020.9,3020.8,2.4321]
[1644891422682,1.49676631,3020.9,3020.8,0.477]
[1644891422880,1.49676631,3020.9,3020.8,0.001]
[1644891424324,1.49676631,3020.9,3020.8,0.82876]
[1644891427572,1.49676631,3020.9,3020.8,1.12876]
[1644891427770,1.49585048,3020.9,3020.8,0.82876]
[1644891430175,1.49585048,3020.9,3020.8,0.82313474]
[1644891431223,1.49585048,3020.9,3020.7,1.04335614]
[1644891433225,1.49585048,3020.9,3020.5,1.65568]
[1644891433426,1.40429149,3020.8,3020.5,1.65568]
[1644891433825,1.40429149,3020.8,3020.4,0.82789]
[1644891434275,1.40429149,3020.8,3020.3,0.82788]
[1644891434575,1.40429149,3020.8,3019.7,2.48347]
[1644891434576,2.40429149,3020.8,3019.8,1.6559]
[1644891434785,2.40429149,3020.8,3019.6,6.2399]
[1644891434786,1.40429149,3020.7,3019.6,6.2399]
[1644891434974,1.40429149,3020.7,3019.3,7.96966725]
[1644891434975,0.82818,3020.4,3019.9,0.03916972]
[1644891435177,1.40429149,3020.3,3019.9,0.03916972]
[1644891435375,1.40429149,3020.2,3019.9,0.03916972]
[1644891435577,1.04452193,3020.4,3019.9,0.03916972]
[1644891435877,1.40455767,3020.3,3019.7,0.8428446]
[1644891436276,1.40455767,3020.3,3019.4,0.03917502]
[1644891436475,1.04452193,3020.4,3019.4,0.03917502]
[1644891436677,1.04452193,3020.4,3019.9,0.82802]
[1644891436878,1.0,3020.7,3019.9,0.82902]
[1644891437079,1.0,3020.7,3019.9,0.82802]
[1644891437080,1.40446552,3020.6,3019.9,0.82802]
[1644891437278,1.70446552,3020.6,3019.9,0.82802]
[1644891437480,0.3,3020.6,3019.9,0.82802]
[1644891437683,1.40446801,3020.5,3019.9,1.656]
[1644891437882,1.40446801,3020.5,3020.1,1.70257412]
[1644891438130,1.40446801,3020.4,3020.2,0.001]
[1644891438331,3.15191478,3020.9,3020.2,0.001]
[1644891438526,3.15191478,3020.9,3019.7,0.03917251]
[1644891438527,1.40449545,3020.8,3019.7,0.03917251]
[1644891438729,1.70449545,3020.8,3019.7,0.03917251]
[1644891438926,1.10449545,3020.7,3019.9,20.02]
[1644891439127,1.49585048,3020.9,3020.5,0.01209926]
[1644891439529,1.49585048,3020.9,3020.6,0.98689873]
[1644891439929,1.49585048,3020.9,3020.6,3.46961873]
[1644891440128,1.49585048,3020.9,3020.7,0.001]
[1644891440331,1.49585048,3020.9,3020.7,0.828623]
[1644891440931,1.49585048,3020.9,3020.7,3.311473]
[1644891441128,1.49585048,3020.9,3020.8,0.001]
[1644891443182,1.49585048,3020.9,3020.8,0.301]
[1644891446431,0.62830679,3021.5,3020.8,0.301]
[1644891446631,0.00253702,3021.5,3020.9,0.8275854]
[1644891446931,0.00253702,3021.6,3021.1,0.82745]
[1644891447229,0.00253702,3021.6,3021.1,0.82845]
[1644891447830,0.00253702,3021.6,3021.2,0.82745]
[1644891448032,0.00253702,3021.6,3021.3,1.65511]
[1644891448233,0.00253702,3021.6,3021.4,0.001]
[1644891448430,0.76094979,3021.7,3021.4,0.001]
[1644891448631,0.76094979,3021.7,3021.3,1.65505]
[1644891448831,0.76094979,3021.7,3021.4,0.82756]
[1644891449281,0.76094979,3021.7,3021.5,0.82756]
[1644891449877,0.62576977,3021.6,3021.5,0.82756]
[1644891450078,0.62576977,3021.7,3021.5,0.82756]
[1644891450279,0.62830679,3021.7,3020.8,0.82774]
[1644891450481,0.62830679,3021.7,3020.7,5.32954]
[1644891450482,0.62576977,3021.4,3020.7,4.5018]
[1644891450680,0.62576977,3021.4,3020.7,1.1761]
[1644891450882,0.62576977,3021.4,3020.4,3.398]
[1644891451479,0.62576977,3021.4,3020.9,0.82771]
[1644891451686,0.00253702,3021.7,3020.9,4.32771]
[1644891451879,0.00253702,3021.8,3020.9,0.82771]
[1644891452278,0.00253702,3021.8,3020.9,2.4826465]
[1644891452479,0.00253702,3021.8,3021.0,0.3]
[1644891452678,0.62576977,3022.0,3021.0,0.3]
[1644891452679,1.68132745,3022.0,3021.6,0.82749]
[1644891452879,0.00253702,3021.9,3021.6,0.82749]
[1644891453131,0.62830679,3021.9,3021.0,4.3565]
[1644891453332,0.62830679,3021.9,3021.0,1.2424]
[1644891453333,0.62576977,3021.8,3021.0,1.2424]
[1644891453538,0.00253702,3021.7,3021.0,1.5424]
[1644891453731,0.62576977,3022.0,3021.0,1.5424]
[1644891453732,0.00253702,3021.9,3021.4,0.82759]
[1644891453934,0.62830679,3021.9,3021.5,0.82755]
[1644891454132,0.62576977,3021.9,3021.5,0.82855]
[1644891454333,0.00253702,3021.8,3021.5,0.82755]
[1644891454532,0.62830679,3021.8,3021.5,0.82755]
[1644891454733,0.62576977,3021.7,3021.5,0.82855]
[1644891454933,0.62830679,3021.8,3021.5,0.82855]
[1644891455134,0.62576977,3021.8,3021.5,0.82855]
[1644891455337,0.62830679,3021.8,3021.5,0.82855]
[1644891455934,0.62830679,3021.8,3021.6,0.82754]
[1644891456137,0.62830679,3021.8,3021.6,0.82854]
[1644891456775,0.62830679,3021.8,3021.6,1.65608]
[1644891456981,0.62830679,3021.8,3021.7,0.001]
[1644891457175,0.62576977,3021.8,3021.7,0.001]
[1644891457375,0.62951723,3021.8,3021.7,0.001]
[1644891457577,0.00253702,3021.9,3021.4,0.001]
[1644891457578,1.6646638,3021.9,3021.4,0.001]
[1644891457775,1.6646638,3021.9,3021.0,1.2424]
[1644891457776,0.62948491,3021.5,3021.2,0.001]
[1644891457978,0.62948491,3021.6,3021.1,0.82866]
[1644891458377,0.62948491,3021.6,3021.1,0.82766]
[1644891459077,0.62948491,3021.6,3021.0,1.65528]
[1644891459078,1.11408281,3021.5,3021.0,1.65528]
[1644891459278,1.11408281,3021.5,3021.1,0.001]
[1644891459279,1.40411893,3021.4,3021.1,0.001]
[1644891459480,1.40411893,3021.3,3021.2,0.82767]
[1644891460279,1.01524803,3021.5,3021.2,0.82767]
[1644891460530,2.03360384,3021.6,3021.2,0.82767]
[1644891460531,1.40411893,3021.4,3021.2,0.82767]
[1644891460734,1.40411893,3021.3,3021.2,0.82767]
[1644891461129,0.62948491,3021.6,3021.2,0.82767]
[1644891461332,0.62948491,3021.6,3021.3,0.8276]
[1644891461532,3.03360384,3021.7,3021.5,0.9392094]
[1644891461730,1.40403249,3021.6,3021.5,0.9402094]
[1644891462132,2.40403249,3021.6,3021.5,0.9402094]
[1644891463330,1.40403249,3021.6,3021.5,0.001]
[1644891463530,1.40403249,3021.6,3021.4,0.82856]
[1644891463730,1.40403249,3021.6,3021.4,2.48365]
[1644891463933,0.63202193,3021.8,3021.6,0.82747]
[1644891464130,0.63202193,3021.8,3021.6,0.82847]
[1644891465171,0.00253702,3021.8,3021.6,0.001]
[1644891465376,0.62948491,3021.8,3021.5,0.87859667]
[1644891465572,0.63202193,3021.8,3021.5,0.87859667]
[1644891465772,1.45966573,3021.8,3021.1,0.001]
[1644891465974,2.03348451,3021.7,3021.2,0.82765]
[1644891466177,2.03348451,3021.6,3021.3,0.82763]
[1644891466475,2.03348451,3021.6,3021.3,0.82863]
[1644891466476,1.4039996,3021.5,3021.3,0.82863]
[1644891466671,1.4039996,3021.4,3021.3,0.82763]
[1644891466872,0.00253702,3021.8,3021.3,0.82763]
[1644891466873,1.4039996,3021.5,3021.3,0.82763]
[1644891467073,0.63202193,3021.8,3021.3,0.82763]
[1644891467074,1.4039996,3021.4,3021.3,0.82763]
[1644891467371,1.4039996,3021.4,3021.3,1.65524]
[1644891467574,0.62948491,3021.7,3021.3,1.65624]
[1644891467773,0.00253702,3021.8,3021.3,1.65524]
[1644891467774,0.62948491,3021.8,3021.3,1.65524]
[1644891468021,0.63202193,3021.8,3021.3,1.65524]
[1644891468223,0.63202193,3021.8,3021.6,1.04743862]
[1644891468420,0.00253702,3021.8,3021.6,1.04743862]
[1644891468621,0.62948491,3021.9,3021.4,0.82759]
[1644891468821,0.00253702,3022.0,3021.4,0.82759]
[1644891468822,0.62948491,3021.7,3021.4,0.82759]
[1644891469423,0.62948491,3021.8,3021.4,0.82759]
[1644891469621,0.63202193,3021.8,3021.4,1.6552]
[1644891470022,0.00253702,3021.8,3021.4,1.6552]
[1644891470226,0.00253702,3021.8,3021.5,0.82761]
[1644891470826,0.00253702,3021.8,3021.5,1.65519]
[1644891471227,0.00253702,3021.8,3021.5,0.82758]
[1644891472074,0.00253702,3021.8,3021.4,1.65521]
[1644891472370,0.63202193,3021.8,3021.4,1.65521]
[1644891472571,0.62948491,3021.8,3021.4,1.65521]
[1644891472772,0.62948491,3021.7,3021.4,1.65521]
[1644891472971,0.62948491,3021.7,3021.5,0.001]
[1644891473471,0.62948491,3021.8,3021.5,0.001]
[1644891473671,0.62948491,3021.8,3021.5,0.82859]
[1644891473874,0.62948491,3021.8,3021.6,0.82758]
[1644891474072,0.63202193,3021.8,3021.6,0.82858]
[1644891474277,0.00253702,3021.8,3021.6,0.82858]
[1644891479480,0.00253702,3021.8,3021.6,1.65614]
[1644891479685,0.00253702,3021.8,3021.7,0.001]
[1644891480277,0.00253702,3021.8,3021.6,0.82758]
[1644891480477,0.83013582,3021.8,3021.5,0.82862]
[1644891480679,0.83013582,3021.8,3021.5,0.001]
[1644891480878,0.83013582,3021.8,3021.2,0.001]
[1644891480879,0.00253702,3021.8,3021.2,0.001]
[1644891481078,0.00253702,3021.8,3021.0,0.001]
[1644891481478,0.00253702,3021.8,3021.6,0.82754]
[1644891481678,0.00253702,3021.8,3021.7,0.82754]
[1644891481878,0.00253702,3021.8,3021.7,0.82854]
[1644891482780,0.63202193,3021.8,3021.7,0.82854]
[1644891483027,0.132612,3022.0,3021.7,0.82854]
[1644891483028,0.62948491,3021.9,3021.7,0.82854]
[1644891483227,0.76463393,3022.0,3021.8,0.82742]